bitfinex/quotes_ETHUSD_20240630
["timestamp","ask_amount","ask_price","bid_price","bid_amount"]
[1719782867624,2.95,3422.9,3422.3,2.2618]
[1719782868125,2.95,3422.9,3422.4,0.06176088]
[1719782868409,2.95,3422.9,3422.3,2.2618]
[1719782868810,2.95,3422.9,3422.4,0.06176088]
[1719782871467,2.95,3422.9,3422.3,2.2618]
[1719782871882,2.95,3422.9,3422.4,0.06015365]
[1719782873031,2.95,3422.9,3422.3,2.2618]
[1719782873320,2.95,3422.9,3422.4,0.06015365]
[1719782873531,2.4818,3422.8,3422.1,0.05843335]
[1719782874022,2.4818,3422.8,3422.2,0.06025105]
[1719782890443,2.4818,3422.8,3422.2,0.03225105]
[1719782890648,2.4818,3422.8,3422.2,0.06020545]
[1719782891433,2.6278,3422.8,3422.2,0.06020545]
[1719782891633,3.0,3422.7,3422.2,0.06020545]
[1719782899063,2.6278,3422.8,3422.2,0.06020545]
[1719782902092,3.0,3422.7,3422.2,0.06020545]
[1719782925500,2.6278,3422.8,3422.2,0.06020545]
[1719782926434,3.575279,3422.8,3422.2,0.06020545]
[1719782927199,3.575279,3422.8,3422.0,2.4062]
[1719782927406,3.575279,3422.8,3422.1,0.05937882]
[1719782930115,3.575279,3422.8,3422.0,2.4062]
[1719782930461,2.6278,3422.8,3422.1,0.05937882]
[1719782933024,0.146,3422.8,3422.2,2.3246]
[1719782933223,0.146,3422.8,3422.3,0.05928298]
[1719782933447,0.146,3422.8,3422.2,2.3246]
[1719782933965,0.146,3422.8,3422.3,0.05928298]
[1719782938655,0.146,3422.8,3422.2,2.3246]
[1719782938855,0.146,3422.8,3422.3,0.05928298]
[1719782950204,0.761299,3422.8,3422.3,0.05928298]
[1719782966835,0.761299,3422.8,3422.2,2.3246]
[1719782967347,0.761299,3422.8,3422.3,0.05926901]
[1719782987580,1.601299,3422.8,3422.3,0.05926901]
[1719782987798,2.2721,3422.7,3422.3,0.05926901]
[1719782987954,1.5273399,3422.6,3421.9,2.4191]
[1719782988154,2.2721,3422.4,3421.6,2.4191]
[1719782988466,0.84,3422.2,3421.6,2.4191]
[1719782988877,0.84,3422.2,3421.7,0.05958221]
[1719782989088,0.31121,3422.1,3421.7,0.05958221]
[1719782989490,0.31121,3422.1,3421.3,2.3665473]
[1719782989491,0.31121,3422.1,3421.3,0.84]
[1719782989845,0.31121,3422.1,3421.4,0.05972837]
[1719782990190,0.84,3422.2,3421.4,0.05972837]
[1719782992441,0.84,3422.2,3421.2,3.2308]
[1719782992760,0.84,3422.2,3421.3,0.0597771]
[1719782995255,2.415,3422.1,3421.3,0.0597771]
[1719783001311,0.84,3422.0,3421.3,0.0597771]
[1719783002363,2.415,3422.1,3421.3,0.0597771]
[1719783002596,1.0815,3422.0,3421.3,0.0597771]
[1719783005410,2.4383,3421.9,3421.3,0.0597771]
[1719783028355,0.84,3421.4,3421.3,0.0597771]
[1719783028532,0.84,3421.4,3420.7,2.3231]
[1719783028533,3.0918,3421.4,3420.7,2.3231]
[1719783028733,3.0918,3421.4,3421.3,0.05797172]
[1719783028942,3.0918,3421.4,3420.7,2.3231]
[1719783028943,3.40098,3421.4,3420.7,2.3231]
[1719783029601,3.40098,3421.4,3420.8,0.05626107]
[1719783030058,3.40098,3421.4,3420.7,2.3231]
[1719783030428,3.40098,3421.4,3420.8,0.05626107]
[1719783030601,3.40098,3421.4,3420.5,2.3231]
[1719783030807,0.340098,3421.3,3420.6,0.05635856]
[1719783038266,3.0918,3421.4,3420.6,0.05635856]
[1719783039552,2.43,3421.3,3420.6,0.05635856]
[1719783039876,2.43,3421.3,3420.3,3.1358]
[1719783040048,2.43,3421.3,3420.7,0.05630981]
[1719783040250,2.43,3421.3,3420.3,3.1358]
[1719783040429,2.43,3421.3,3420.8,0.05626107]
[1719783040634,2.43,3421.3,3420.3,3.1358]
[1719783040877,2.43,3421.3,3420.9,0.05621233]
[1719783041063,2.43,3421.3,3420.3,3.1358]
[1719783041262,2.43,3421.3,3421.0,0.05616359]
[1719783041470,0.327,3421.2,3420.3,3.1358]
[1719783041674,0.84,3421.2,3421.1,0.05611485]
[1719783041992,2.4849,3421.1,3420.3,2.2958]
[1719783042358,2.4849,3421.1,3420.4,0.05650723]
[1719783044491,0.84,3421.0,3420.4,0.05650723]
[1719783044864,2.4849,3420.9,3419.9,2.3564]
[1719783047608,2.4849,3420.9,3420.1,0.48110213]
[1719783047795,2.6309,3420.9,3420.1,0.48110213]
[1719783053792,2.6309,3420.9,3420.2,0.05661018]
[1719783054385,2.6309,3420.9,3420.3,0.05656142]
[1719783054601,2.6309,3420.9,3420.1,0.42444862]
[1719783055002,2.6309,3420.9,3420.2,0.05661018]
[1719783055388,2.6309,3420.9,3420.1,0.42444862]
[1719783055591,2.6309,3420.9,3420.2,0.05661018]
[1719783055878,2.6309,3420.9,3420.1,0.42444862]
[1719783056319,2.6309,3420.9,3420.2,0.05661018]
[1719783056887,2.6309,3420.9,3419.9,0.84]
[1719783057078,2.6309,3420.9,3420.3,0.05656142]
[1719783057328,2.6309,3420.9,3419.9,0.84]
[1719783057329,2.97799,3420.9,3419.9,0.84]
[1719783057498,2.6309,3420.9,3419.9,0.84]
[1719783057695,2.6309,3420.9,3420.0,0.05670771]
[1719783081471,2.6309,3420.9,3419.9,0.84]
[1719783081677,2.6309,3420.9,3420.0,0.05332982]
[1719783087075,2.6309,3420.9,3419.8,0.84]
[1719783087409,2.6309,3420.9,3419.9,3.01616739]
[1719783087608,2.6309,3420.9,3419.9,0.47087403]
[1719783089026,2.6309,3420.9,3419.9,0.05176813]
[1719783090025,0.84,3420.8,3419.9,0.05176813]
[1719783090221,2.3604,3420.7,3419.9,0.05176813]
[1719783090735,2.3604,3420.7,3419.7,1.07792639]
[1719783090896,2.3604,3420.7,3420.0,0.05010891]
[1719783091224,2.3604,3420.7,3419.8,1.01815651]
[1719783091225,2.3191,3420.5,3419.7,1.07792639]
[1719783091379,2.3191,3420.5,3420.1,0.05006015]
[1719783091581,2.3191,3420.5,3419.7,1.07792639]
[1719783091783,2.3191,3420.5,3420.2,0.05002072]
[1719783091992,2.3191,3420.5,3419.7,1.07792639]
[1719783092220,2.3191,3420.5,3420.3,0.04997196]
[1719783092526,0.84,3420.8,3419.7,1.07792639]
[1719783092527,2.3808,3420.3,3419.7,1.07792639]
[1719783095217,2.3808,3420.3,3419.8,0.05021578]
[1719783109156,2.3808,3420.3,3419.7,0.23792639]
[1719783109443,2.3808,3420.3,3419.9,0.04859355]
[1719783109649,2.3808,3420.3,3419.8,0.04864232]
[1719783109852,2.59958,3420.2,3419.7,0.23792639]
[1719783110036,2.2775,3420.2,3419.7,0.23792639]
[1719783110230,2.2775,3420.2,3419.8,0.04864232]
[1719783119531,2.2775,3420.2,3419.7,0.23656871]
[1719783119730,2.2775,3420.2,3419.8,0.04715591]
[1719783119964,2.2775,3420.2,3419.7,0.23656871]
[1719783120367,2.2775,3420.2,3419.8,0.04715591]
[1719783120532,2.58925,3420.2,3419.7,0.23656871]
[1719783120733,2.58925,3420.2,3419.8,0.04715591]
[1719783120933,2.58925,3420.2,3419.7,0.23656871]
[1719783121259,2.58925,3420.2,3419.8,0.04715591]
[1719783121775,2.58925,3420.2,3419.7,0.23656871]
[1719783121961,2.58925,3420.2,3419.9,0.04710713]
[1719783122274,2.58925,3420.2,3419.7,0.23656871]
[1719783122664,2.58925,3420.2,3419.8,0.04717764]
[1719783123376,2.58925,3420.2,3419.7,0.23656871]
[1719783123530,2.58925,3420.2,3419.9,0.04712887]
[1719783123733,2.58925,3420.2,3419.7,0.23656871]
[1719783123934,2.58925,3420.2,3419.8,0.04717764]
[1719783124189,2.58925,3420.2,3419.7,0.23656871]
[1719783124749,2.58925,3420.2,3419.8,0.04717764]
[1719783124975,2.58925,3420.2,3419.7,0.23656871]
[1719783125150,2.58925,3420.2,3419.9,0.04712887]
[1719783125358,2.58925,3420.2,3419.7,0.23656871]
[1719783125549,2.58925,3420.2,3420.0,0.0470801]
[1719783125731,0.342925,3420.1,3420.0,0.0470801]
[1719783126251,0.342925,3420.1,3419.7,0.23656871]
[1719783126448,2.2775,3420.2,3420.0,0.0470801]
[1719783126777,2.2775,3420.2,3419.7,0.23656871]
[1719783126973,2.2775,3420.2,3420.1,0.04703133]
[1719783127151,2.2775,3420.2,3419.7,0.23656871]
[1719783127475,2.2775,3420.2,3420.1,0.04703133]
[1719783127686,2.58925,3420.2,3419.7,0.23656871]
[1719783128090,2.58925,3420.2,3419.8,0.04717764]
[1719783128462,2.58925,3420.2,3419.7,0.23656871]
[1719783128878,2.58925,3420.2,3419.8,0.04717764]
[1719783129202,2.58925,3420.2,3419.7,0.23656871]
[1719783129393,2.58925,3420.2,3419.9,0.04712887]
[1719783129590,2.58925,3420.2,3419.7,0.23656871]
[1719783129897,2.58925,3420.2,3420.0,0.0470801]
[1719783130079,2.58925,3420.2,3419.7,0.23656871]
[1719783130276,2.2775,3420.2,3419.7,0.23656871]
[1719783130652,2.2775,3420.2,3419.8,0.04717764]
[1719783131087,2.2775,3420.2,3419.7,0.23656871]
[1719783131591,2.2775,3420.2,3419.8,0.04717764]
[1719783131794,2.2775,3420.2,3419.7,0.23656871]
[1719783132000,2.2775,3420.2,3419.9,0.04712887]
[1719783132155,2.58925,3420.2,3419.7,0.23656871]
[1719783132357,2.2775,3420.2,3419.8,0.04717764]
[1719783132585,2.2775,3420.2,3419.7,0.23656871]
[1719783132893,2.2775,3420.2,3419.9,0.04712887]
[1719783133102,2.2775,3420.2,3419.8,0.04717764]
[1719783133300,2.2775,3420.2,3419.7,0.23656871]
[1719783133604,2.2775,3420.2,3419.8,0.04717764]
[1719783133899,2.2775,3420.2,3419.7,0.23656871]
[1719783134223,2.2775,3420.2,3419.8,0.04717764]
[1719783134368,2.2775,3420.2,3419.7,0.23656871]
[1719783134556,2.2775,3420.2,3419.9,0.04712887]
[1719783134753,2.58925,3420.2,3419.7,0.23656871]
[1719783135093,2.58925,3420.2,3419.8,0.04717764]
[1719783135396,2.58925,3420.2,3419.7,0.23656871]
[1719783135557,2.2775,3420.2,3419.9,0.04712887]
[1719783135892,2.2775,3420.2,3419.7,0.23656871]
[1719783136389,2.2775,3420.2,3419.8,0.04717764]
[1719783160801,2.2775,3420.2,3419.7,0.23656871]
[1719783160999,2.2775,3420.2,3419.8,0.04573336]
[1719783164095,2.58925,3420.2,3419.8,0.04573336]
[1719783208078,2.2775,3420.2,3419.8,0.04573336]
[1719783212500,2.2873,3420.6,3419.8,0.04573336]
[1719783215679,2.2873,3420.6,3419.8,0.10419875]
[1719783216077,5.2873,3420.6,3419.8,2.50259875]
[1719783216622,3.0,3420.5,3419.8,2.50259875]
[1719783216779,3.0,3420.5,3419.9,0.35791675]
[1719783216978,2.2873,3420.6,3420.0,0.04517701]
[1719783218924,2.2873,3420.6,3419.8,0.05846539]
[1719783219124,2.2873,3420.6,3420.1,0.04512824]
[1719783219309,2.2873,3420.6,3419.8,0.89846539]
[1719783219519,2.2873,3420.6,3420.2,0.04507948]
[1719783219688,2.2873,3420.6,3419.8,0.89846539]
[1719783219890,2.2873,3420.6,3419.9,0.04522578]
[1719783220385,2.2873,3420.6,3419.9,2.33152578]
[1719783221794,2.2873,3420.6,3419.9,0.04522578]
[1719783225727,2.2873,3420.6,3419.9,2.38682578]
[1719783225949,2.91463,3420.6,3419.9,2.38682578]
[1719783226107,3.0,3420.5,3419.9,2.38682578]
[1719783231710,0.146,3420.9,3420.1,2.3791]
[1719783231910,0.146,3420.9,3420.2,0.04507872]
[1719783232147,0.146,3420.9,3420.2,0.10354622]
[1719783233950,0.146,3420.9,3420.2,0.04507872]
[1719783235132,0.146,3420.9,3420.2,0.10354626]
[1719783235745,0.146,3420.9,3420.2,0.04507872]
[1719783237311,0.986,3420.9,3420.2,0.04507872]
[1719783237511,3.986,3420.9,3420.2,0.04507872]
[1719783237747,4.61122,3420.9,3420.2,0.04507872]
[1719783243264,3.146,3420.9,3420.3,2.456]
[1719783243566,3.0,3420.8,3420.4,0.04497423]
[1719783243757,0.146,3420.9,3420.4,0.04497423]
[1719783246859,0.146,3420.9,3420.4,0.10344187]
[1719783247059,0.146,3420.9,3420.4,0.38491842]
[1719783248276,0.146,3420.9,3420.4,0.44338521]
[1719783248423,0.146,3420.9,3420.4,0.38491842]
[1719783249376,0.146,3420.9,3420.5,2.4443668]
[1719783249555,0.146,3420.9,3420.6,0.84]
[1719783249873,0.146,3420.9,3420.7,0.36692852]
[1719783250228,0.146,3420.9,3420.8,0.0447412]
[1719783250535,0.146,3420.9,3420.7,0.36692852]
[1719783250745,0.146,3420.9,3420.8,0.0447412]
[1719783250945,0.146,3420.9,3420.7,0.36692852]
[1719783251142,0.146,3420.9,3420.6,0.84]
[1719783251143,0.146,3420.9,3420.8,0.35928285]
[1719783251364,0.146,3420.9,3420.8,0.40401939]
[1719783260307,0.146,3420.9,3420.8,2.83751939]
[1719783260593,0.146,3420.9,3420.8,3.67751939]
[1719783263306,0.146,3420.9,3420.8,2.83751939]
[1719783263522,0.146,3420.9,3420.8,3.67751939]
[1719783264564,0.146,3420.9,3420.8,2.83751939]
[1719783269152,0.146,3420.9,3420.8,3.67751939]
[1719783274051,0.146,3420.9,3420.8,3.57921939]
[1719783275827,0.146,3420.9,3420.8,3.63767701]
[1719783276757,0.146,3420.9,3420.8,3.57921939]
[1719783278680,0.146,3420.9,3420.8,2.73921939]
[1719783278971,0.146,3420.9,3420.8,3.57921939]
[1719783282676,0.146,3420.9,3420.8,4.18767487]
[1719783288360,0.146,3420.9,3420.8,4.47509088]
[1719783289089,0.146,3420.9,3420.8,8.4160869]
[1719783290149,0.146,3420.9,3420.8,8.41608379]
[1719783290997,0.146,3420.9,3420.8,7.57608379]
[1719783291193,0.146,3420.9,3420.8,8.41608379]
[1719783291747,0.146,3420.9,3420.8,9.9426372]
[1719783293347,0.146,3420.9,3420.8,9.94263731]
[1719783293571,0.146,3420.9,3420.8,8.41608345]
[1719783293769,0.146,3420.9,3420.8,8.41610454]
[1719783294269,0.146,3420.9,3420.8,9.94267781]
[1719783296303,0.146,3420.9,3420.8,8.41610454]
[1719783296461,0.146,3420.9,3420.8,9.94269184]
[1719783299705,0.146,3420.9,3420.8,9.94269321]
[1719783301874,0.146,3420.9,3420.8,7.39838088]
[1719783302207,0.146,3420.9,3420.8,9.94267696]
[1719783304370,0.146,3420.9,3420.8,10.5567619]
[1719783304570,0.146,3420.9,3420.8,9.94267696]
[1719783305196,0.146,3420.9,3420.8,8.92495973]
[1719783305371,0.146,3420.9,3420.8,10.5567639]
[1719783305567,0.146,3420.9,3420.8,8.01246582]
[1719783305799,0.146,3420.9,3420.8,10.55676317]
[1719783308212,0.146,3420.9,3420.8,7.38156317]
[1719783308372,0.146,3420.9,3420.8,8.22156478]
[1719783311509,0.146,3420.9,3420.8,5.67726582]
[1719783311712,0.146,3420.9,3420.8,8.22156942]
[1719783314511,0.146,3420.9,3420.8,7.60748448]
[1719783314723,0.146,3420.9,3420.8,5.06318088]
[1719783315017,0.146,3420.9,3420.8,8.22213454]
[1719783315398,0.146,3420.9,3420.8,7.6074895]
[1719783315712,0.146,3420.9,3420.8,10.56398722]
[1719783316695,0.146,3420.9,3420.8,7.64069722]
[1719783317016,0.146,3420.9,3420.8,7.6074895]
[1719783317329,0.146,3420.9,3420.8,10.56398861]
[1719783318136,0.146,3420.9,3420.8,10.56390355]
[1719783318285,0.146,3420.9,3420.8,7.09855258]
[1719783318479,0.146,3420.9,3420.8,10.5650036]
[1719783318794,0.146,3420.9,3420.8,9.64277798]
[1719783319310,0.146,3420.9,3420.8,10.56498967]
[1719783319705,0.146,3420.9,3420.8,9.64277798]
[1719783319923,0.146,3420.9,3420.8,10.56509518]
[1719783320312,0.146,3420.9,3420.8,9.64277798]
[1719783321022,0.146,3420.9,3420.8,9.6427685]
[1719783321821,0.146,3420.9,3420.8,8.8027685]
[1719783322028,0.146,3420.9,3420.8,9.6427685]
[1719783322179,0.146,3420.9,3420.8,10.56527164]
[1719783322384,0.146,3420.9,3420.8,9.6427685]
[1719783322830,0.146,3420.9,3420.8,6.7194785]
[1719783323044,0.146,3420.9,3420.8,7.64199456]
[1719783324134,0.146,3420.9,3420.8,5.09777864]
[1719783324306,0.146,3420.9,3420.8,7.64212602]
[1719783327545,0.146,3420.9,3420.8,4.17526258]
[1719783327745,0.146,3420.9,3420.8,7.64233733]
[1719783329229,0.146,3420.9,3420.8,9.64290193]
[1719783329991,0.146,3420.9,3420.8,6.71961193]
[1719783330121,0.146,3420.9,3420.8,7.6424127]
[1719783330728,0.146,3420.9,3420.8,7.64241811]
[1719783331277,0.146,3420.9,3420.8,7.64241823]
[1719783331998,0.146,3420.9,3420.8,7.69697873]
[1719783333846,0.146,3420.9,3420.8,7.6970117]
[1719783334143,0.146,3420.9,3420.8,7.6970094]
[1719783338589,0.146,3420.9,3420.8,6.77420863]
[1719783339980,0.146,3420.9,3420.8,7.69702051]
[1719783340373,0.146,3420.9,3420.8,5.15263496]
[1719783340538,0.146,3420.9,3420.8,7.69702071]
[1719783341837,0.146,3420.9,3420.8,7.4096047]
[1719783342077,2.6136,3420.9,3420.8,7.4096047]
[1719783343408,2.6136,3420.9,3420.8,4.86521895]
[1719783343737,2.6136,3420.9,3420.8,7.35109702]
[1719783343877,2.6136,3420.9,3420.8,7.3510616]
[1719783344078,2.6136,3420.9,3420.8,7.3510598]
[1719783345109,2.6136,3420.9,3420.8,7.35105775]
[1719783345494,2.6136,3420.9,3420.8,5.31568605]
[1719783345685,2.6136,3420.9,3420.8,7.35120414]
[1719783346732,2.6136,3420.9,3420.8,4.80687509]
[1719783346884,2.6136,3420.9,3420.8,5.31575387]
[1719783347227,2.6136,3420.9,3420.8,7.35127129]
[1719783347527,2.6136,3420.9,3420.8,4.39297676]
[1719783347884,2.6136,3420.9,3420.8,7.35128018]
[1719783348229,2.6136,3420.9,3420.8,4.39297676]
[1719783348789,2.6136,3420.9,3420.8,5.00819118]
[1719783348990,2.6136,3420.9,3420.8,4.39297676]
[1719783349299,2.6136,3420.9,3420.8,5.00816203]
[1719783350019,2.6136,3420.9,3420.8,5.00830729]
[1719783351641,2.6136,3420.9,3420.8,4.39312202]
[1719783351935,2.6136,3420.9,3420.8,5.00823555]
[1719783352136,2.6136,3420.9,3420.8,4.39312202]
[1719783352642,2.6136,3420.9,3420.8,5.00822798]
[1719783353371,2.6136,3420.9,3420.8,5.0081523]
[1719783356519,2.6136,3420.9,3420.8,5.00817177]
[1719783357027,2.6136,3420.9,3420.8,5.00817152]
[1719783357537,0.146,3420.9,3420.8,5.00817152]
[1719783358554,0.146,3420.9,3420.8,3.55306879]
[1719783358761,0.146,3420.9,3420.8,4.39306879]
[1719783358981,0.146,3420.9,3420.8,5.00817152]
[1719783359695,0.146,3420.9,3420.8,5.0081917]
[1719783360257,0.146,3420.9,3420.8,4.39308897]
[1719783361398,0.146,3420.9,3420.8,3.19380612]
[1719783361569,2.5168,3420.9,3420.8,4.0338998]
[1719783361765,2.5168,3420.9,3420.8,2.50710067]
[1719783361963,2.5168,3420.9,3420.8,1.48929704]
[1719783362779,2.5168,3420.9,3420.8,0.09929704]
[1719783362962,2.5168,3420.9,3420.8,0.8945605]
[1719783363165,2.5168,3420.9,3420.8,0.93694639]
[1719783363383,2.76848,3420.9,3420.8,0.09694639]
[1719783363564,2.76848,3420.9,3420.3,0.61501753]
[1719783363770,2.76848,3420.9,3420.5,0.84]
[1719783363967,2.76848,3420.9,3420.4,0.09714782]
[1719783364171,2.76848,3420.9,3420.5,1.95502344]
[1719783364381,0.276848,3420.8,3420.5,0.09709746]
[1719783364569,0.146,3420.9,3420.5,0.84]
[1719783364570,2.359,3420.7,3420.5,0.84]
[1719783364781,2.359,3420.7,3420.6,0.0970471]
[1719783364985,2.359,3420.7,3420.3,0.84]
[1719783365283,2.359,3420.7,3420.6,0.0970471]
[1719783365482,2.359,3420.7,3420.3,0.84]
[1719783365987,2.359,3420.7,3420.4,0.09714782]
[1719783367922,2.6095,3420.7,3420.4,0.09714782]
[1719783369739,2.6095,3420.7,3420.4,0.93714782]
[1719783369924,2.6095,3420.7,3420.4,0.84]
[1719783370104,2.6095,3420.7,3420.5,0.09709746]
[1719783376632,2.6095,3420.7,3420.3,0.84]
[1719783377232,2.6095,3420.7,3420.4,0.0972378]
[1719783377536,2.6095,3420.7,3420.3,0.84]
[1719783377743,2.70575,3420.6,3420.3,0.84]
[1719783378051,2.70575,3420.6,3420.4,0.0972378]
[1719783381636,2.70575,3420.6,3420.3,0.84]
[1719783381849,2.70575,3420.6,3420.5,0.09637313]
[1719783381998,2.4302,3420.6,3420.3,0.84]
[1719783382199,2.4302,3420.6,3420.4,0.09643358]
[1719783388143,2.4302,3420.6,3420.2,0.84]
[1719783388309,2.4302,3420.6,3419.7,7.55656871]
[1719783388514,2.4302,3420.6,3420.3,0.09650025]
[1719783388736,2.4302,3420.6,3420.2,0.84]
[1719783388935,2.4302,3420.6,3420.4,0.09644988]
[1719783389140,2.4302,3420.6,3420.3,0.09650025]
[1719783389440,2.4302,3420.6,3420.4,0.09644988]
[1719783389627,2.68782,3420.6,3420.2,0.84]
[1719783389832,2.68782,3420.6,3420.5,0.09639952]
[1719783390032,2.68782,3420.6,3420.2,0.84]
[1719783390242,2.68782,3420.6,3420.5,0.09639952]
[1719783390400,2.68782,3420.6,3420.2,0.84]
[1719783390601,2.68782,3420.6,3420.3,0.09650025]
[1719783396054,2.5146,3420.9,3420.4,0.84]
[1719783396416,2.5146,3420.9,3420.4,0.93645299]
[1719783398317,2.5146,3420.9,3420.6,0.84]
[1719783398853,2.5146,3420.9,3420.7,0.0963182]
[1719783402134,2.5146,3420.9,3420.4,0.84]
[1719783402334,2.5146,3420.9,3420.8,0.09626475]
[1719783402534,2.5146,3420.9,3420.4,0.84]
[1719783402962,2.5146,3420.9,3420.5,0.09545494]
[1719783407359,2.5146,3420.9,3420.4,0.84]
[1719783407566,2.5146,3420.9,3420.6,0.09540458]
[1719783407751,2.5146,3420.9,3420.5,0.09545494]
[1719783407952,2.5146,3420.9,3420.7,0.09535423]
[1719783408152,2.5146,3420.9,3420.6,0.09540458]
[1719783408367,2.5146,3420.9,3420.8,0.09530387]
[1719783408569,2.5146,3420.9,3420.7,0.09535423]
[1719783408768,2.5146,3420.9,3420.4,0.84]
[1719783408970,2.5146,3420.9,3420.8,0.09530387]
[1719783409169,2.5146,3420.9,3420.4,0.84]
[1719783409682,2.5146,3420.9,3420.5,0.09545494]
[1719783425464,0.146,3420.9,3420.5,0.09545494]
[1719783426572,0.146,3420.9,3420.6,0.84]
[1719783426980,0.146,3420.9,3420.7,0.09536043]
[1719783440083,0.146,3420.9,3420.8,0.09530931]
[1719783440834,0.146,3420.9,3420.6,0.84]
[1719783440989,0.146,3420.9,3420.8,0.09530931]
[1719783441187,0.146,3420.9,3420.7,0.09535966]
[1719783441424,0.146,3420.9,3420.8,0.09530931]
[1719783442625,0.146,3420.9,3420.6,0.84]
[1719783442840,0.146,3420.9,3420.8,0.09530931]
[1719783443121,0.146,3420.9,3420.7,0.09535966]
[1719783443341,0.146,3420.9,3420.8,0.09530931]
[1719783443635,0.146,3420.9,3420.6,0.84]
[1719783443830,0.146,3420.9,3420.8,0.09530931]
[1719783444124,0.146,3420.9,3420.6,0.84]
[1719783444330,0.146,3420.9,3420.8,0.09530931]
[1719783444492,0.146,3420.9,3420.7,0.09535966]
[1719783444687,0.146,3420.9,3420.8,0.09530931]
[1719783444889,0.146,3420.9,3420.6,0.84]
[1719783445338,0.146,3420.9,3420.7,0.09535733]
[1719783445835,0.146,3420.9,3420.8,0.09530697]
[1719783446007,0.146,3420.9,3420.6,0.84]
[1719783446206,0.146,3420.9,3420.8,0.09530697]
[1719783446410,0.146,3420.9,3420.6,0.84]
[1719783446717,0.146,3420.9,3420.8,0.09530697]
[1719783446903,0.146,3420.9,3420.7,0.09535733]
[1719783447103,0.146,3420.9,3420.8,0.09530697]
[1719783447487,0.146,3420.9,3420.6,0.84]
[1719783447833,0.146,3420.9,3420.7,0.09535733]
[1719783449840,2.2707,3420.8,3420.2,0.84]
[1719783449986,2.2707,3420.8,3420.2,1.31481581]
[1719783450421,2.2707,3420.8,3420.2,0.84]
[1719783455550,2.2707,3420.8,3420.3,0.09555877]
[1719783460563,2.2707,3420.8,3420.3,0.93555877]
[1719783468470,2.2707,3420.8,3420.5,0.84]
[1719783468845,2.2707,3420.8,3420.6,0.09397784]
[1719783469964,2.2707,3420.8,3420.3,0.84]
[1719783470301,2.2707,3420.8,3420.4,0.09406539]
[1719783471185,2.2707,3420.8,3420.4,0.93406539]
[1719783477997,0.146,3420.9,3420.5,0.05847378]
[1719783478322,0.146,3420.9,3420.6,0.93395614]
[1719783484531,0.146,3420.9,3420.6,0.09395614]
[1719783484831,0.146,3420.9,3420.5,0.84]
[1719783484989,0.146,3420.9,3420.7,0.09389878]
[1719783485191,0.146,3420.9,3420.5,0.84]
[1719783485518,0.146,3420.9,3420.6,0.09394914]
[1719783489030,0.146,3420.9,3420.4,0.84]
[1719783489432,0.146,3420.9,3420.5,0.0939995]
[1719783492138,2.3276,3420.8,3420.5,0.0939995]
[1719783492332,2.57496,3420.8,3420.5,0.0939995]
[1719783492536,2.57496,3420.8,3420.2,0.84]
[1719783492827,2.3276,3420.8,3420.2,0.84]
[1719783492997,2.3276,3420.8,3420.3,0.09410022]
[1719783494730,2.3276,3420.8,3420.3,0.93410022]
[1719783503649,2.3276,3420.8,3420.3,0.09410022]
[1719783503803,2.3276,3420.8,3420.3,0.93410022]
[1719783506223,0.146,3420.9,3420.5,0.84]
[1719783506568,0.146,3420.9,3420.6,0.0939631]
[1719783509721,0.146,3420.9,3420.2,2.313]
[1719783509954,0.146,3420.9,3420.7,0.09390888]
[1719783510167,0.146,3420.9,3420.4,0.84]
[1719783510325,0.146,3420.9,3420.8,0.09385853]
[1719783510522,0.146,3420.9,3420.4,0.84]
[1719783511068,0.146,3420.9,3420.5,0.0940096]
[1719783521414,0.146,3420.9,3420.4,0.84]
[1719783521705,0.146,3420.9,3420.6,0.84]
[1719783522212,0.146,3420.9,3420.7,0.09390035]
[1719783525474,2.4863,3420.8,3420.7,0.09390035]
[1719783525677,5.4863,3420.8,3420.7,0.09390035]
[1719783526200,5.4863,3420.8,3420.5,0.84]
[1719783526524,5.4863,3420.8,3420.6,0.0939507]
[1719783526921,5.4863,3420.8,3420.4,0.84]
[1719783527413,5.4863,3420.8,3420.5,0.09400106]
[1719783528277,2.4863,3420.8,3420.5,0.09400106]
[1719783530193,5.4863,3420.8,3420.5,0.09400106]
[1719783537343,5.4863,3420.8,3420.0,2.4364]
[1719783537517,5.4863,3420.8,3420.6,0.0939538]
[1719783537839,5.4863,3420.8,3420.7,0.09390344]
[1719783538040,5.4863,3420.8,3420.0,2.4364]
[1719783538199,5.4863,3420.8,3420.1,0.09420562]
[1719783551016,5.4863,3420.8,3419.9,3.21937532]
[1719783551217,5.4863,3420.8,3420.0,0.55636073]
[1719783561849,2.3662,3420.7,3420.0,0.55636073]
[1719783597529,2.3662,3420.7,3420.0,0.09424977]
[1719783600330,2.3662,3420.7,3420.1,0.05847341]
[1719783600642,2.3662,3420.7,3420.2,1.11123241]
[1719783600795,2.3662,3420.7,3420.2,0.09316582]
[1719783601228,2.3662,3420.7,3420.0,0.05847015]
[1719783601542,2.3662,3420.7,3420.3,0.09311546]
[1719783601833,2.4309,3420.6,3420.4,0.09306509]
[1719783602023,2.4309,3420.6,3420.0,0.05847015]
[1719783602225,2.4309,3420.6,3420.5,0.09301473]
[1719783602538,2.4309,3420.6,3420.0,0.05847015]
[1719783602747,2.4309,3420.6,3420.5,0.09301473]
[1719783602895,2.4309,3420.6,3420.0,0.05847015]
[1719783603228,2.4309,3420.6,3420.1,0.09321619]
[1719783606610,2.4309,3420.6,3419.9,0.05847248]
[1719783606796,2.4309,3420.6,3420.2,0.09316582]
[1719783607024,2.4309,3420.6,3419.9,0.05847248]
[1719783607227,2.4309,3420.6,3420.0,1.56812091]
[1719783607423,2.4309,3420.6,3420.0,0.64326657]